[Event "*** Titled Tuesday Blitz"]
[Site "Chess.com"]
[Date "2020.11.10"]
[Round "5"]
[White "lider34"]
[Black "valeriocarnicelli"]
[Result "1/2-1/2"]
[WhiteElo "2404"]
[BlackElo "2565"]
[TimeControl "180+1"]
[EndTime "10:59:56 PST"]
[Termination "Game drawn by repetition"]

1. e4 {[%clk 0:03:00.9]} 1... e5 {[%clk 0:02:57.3]} 2. Nf3 {[%clk 0:02:59.8]}
2... Nc6 {[%clk 0:02:57.3]} 3. d4 {[%clk 0:02:59]} 3... exd4 {[%clk 0:02:57.2]}
4. Nxd4 {[%clk 0:02:58.9]} 4... Nf6 {[%clk 0:02:57.3]} 5. Nc3 {[%clk 0:02:57.9]}
5... Bb4 {[%clk 0:02:56.6]} 6. Nxc6 {[%clk 0:02:57.6]} 6... bxc6 {[%clk
0:02:55.9]} 7. Bd3 {[%clk 0:02:57.9]} 7... d5 {[%clk 0:02:55.5]} 8. exd5 {[%clk
0:02:57.4]} 8... cxd5 {[%clk 0:02:55.9]} 9. O-O {[%clk 0:02:56.8]} 9... O-O
{[%clk 0:02:55.8]} 10. Bg5 {[%clk 0:02:56.3]} 10... c6 {[%clk 0:02:56]} 11. Qf3
{[%clk 0:02:56.2]} 11... Be7 {[%clk 0:02:54.2]} 12. Rfe1 {[%clk 0:02:52.7]}
12... Rb8 {[%clk 0:02:54.1]} 13. Rab1 {[%clk 0:02:20]} 13... Be6 {[%clk
0:02:53.5]} 14. Ne2 {[%clk 0:02:14.8]} 14... c5 {[%clk 0:02:49.8]} 15. Nf4
{[%clk 0:02:13.6]} 15... Qd7 {[%clk 0:02:47.1]} 16. Nxe6 {[%clk 0:02:02.3]}
16... fxe6 {[%clk 0:02:47.3]} 17. Qh3 {[%clk 0:01:59.8]} 17... h6 {[%clk
0:02:47.4]} 18. Qxe6+ {[%clk 0:01:49.5]} 18... Qxe6 {[%clk 0:02:44.1]} 19. Rxe6
{[%clk 0:01:49.3]} 19... c4 {[%clk 0:02:17.5]} 20. Bg6 {[%clk 0:01:41.5]} 20...
Ba3 {[%clk 0:02:04.3]} 21. Be3 {[%clk 0:01:23.3]} 21... Bxb2 {[%clk 0:01:56.6]}
22. Bxa7 {[%clk 0:01:20.4]} 22... Rb7 {[%clk 0:01:11.8]} 23. Bc5 {[%clk
0:01:19.5]} 23... Rfb8 {[%clk 0:01:05.7]} 24. Bd6 {[%clk 0:01:16.2]} 24... Bd4
{[%clk 0:00:55.1]} 25. Rxb7 {[%clk 0:01:03.1]} 25... Rxb7 {[%clk 0:00:56]} 26.
g3 {[%clk 0:01:00.4]} 26... Ra7 {[%clk 0:00:42.7]} 27. Be7 {[%clk 0:00:36.3]}
27... Rxa2 {[%clk 0:00:38.1]} 28. Rd6 {[%clk 0:00:34.7]} 28... Ra8 {[%clk
0:00:29]} 29. Bxf6 {[%clk 0:00:32.7]} 29... Bxf6 {[%clk 0:00:29.2]} 30. Rxd5
{[%clk 0:00:32.7]} 30... Kf8 {[%clk 0:00:24.4]} 31. Rd7 {[%clk 0:00:30.7]} 31...
c3 {[%clk 0:00:20.4]} 32. h4 {[%clk 0:00:30.2]} 32... Rd8 {[%clk 0:00:16.8]} 33.
Rxd8+ {[%clk 0:00:27.4]} 33... Bxd8 {[%clk 0:00:16.7]} 34. f4 {[%clk 0:00:27.1]}
34... Ke7 {[%clk 0:00:16.1]} 35. Kg2 {[%clk 0:00:26.3]} 35... Kf6 {[%clk
0:00:16.1]} 36. h5 {[%clk 0:00:25]} 36... Ke6 {[%clk 0:00:14.6]} 37. Kf3 {[%clk
0:00:24.8]} 37... Kd5 {[%clk 0:00:13.8]} 38. Bd3 {[%clk 0:00:24]} 38... Bf6
{[%clk 0:00:13.3]} 39. g4 {[%clk 0:00:23.5]} 39... Ke6 {[%clk 0:00:12.2]} 40.
Ke4 {[%clk 0:00:22.9]} 40... Ke7 {[%clk 0:00:11.4]} 41. Kf5 {[%clk 0:00:22.3]}
41... Kf8 {[%clk 0:00:10.8]} 42. g5 {[%clk 0:00:21.4]} 42... hxg5 {[%clk
0:00:09.8]} 43. fxg5 {[%clk 0:00:21.2]} 43... Bd4 {[%clk 0:00:10.5]} 44. Kg6
{[%clk 0:00:18.6]} 44... Kg8 {[%clk 0:00:09.1]} 45. Bc4+ {[%clk 0:00:17.3]}
45... Kh8 {[%clk 0:00:09.1]} 46. Bd3 {[%clk 0:00:16.3]} 46... Be5 {[%clk
0:00:08.9]} 47. Kf5 {[%clk 0:00:15.6]} 47... Bd4 {[%clk 0:00:09.1]} 48. Ke6
{[%clk 0:00:15.4]} 48... Be3 {[%clk 0:00:08.2]} 49. Kf5 {[%clk 0:00:12.3]} 49...
Bd2 {[%clk 0:00:08.2]} 50. Kg6 {[%clk 0:00:12]} 50... Be3 {[%clk 0:00:07.9]} 51.
h6 {[%clk 0:00:11.9]} 51... gxh6 {[%clk 0:00:07.9]} 52. gxh6 {[%clk 0:00:12.1]}
52... Bd4 {[%clk 0:00:07.6]} 53. h7 {[%clk 0:00:12.1]} 53... Be5 {[%clk
0:00:07.5]} 54. Kf5 {[%clk 0:00:11.8]} 54... Bg7 {[%clk 0:00:07.6]} 55. Ke6
{[%clk 0:00:11]} 55... Bd4 {[%clk 0:00:07.3]} 56. Kd5 {[%clk 0:00:11.1]} 56...
Bg7 {[%clk 0:00:07.4]} 57. Be4 {[%clk 0:00:10.9]} 57... Bf6 {[%clk 0:00:07.4]}
58. Bf5 {[%clk 0:00:11]} 58... Bg7 {[%clk 0:00:07]} 59. Be4 {[%clk 0:00:10.6]}
59... Bf6 {[%clk 0:00:07.1]} 60. Bf5 {[%clk 0:00:10.7]} 60... Bg7 {[%clk
0:00:07.4]} 61. Kc4 {[%clk 0:00:10.2]} 61... Bf6 {[%clk 0:00:07.5]} 62. Kd5
{[%clk 0:00:10.2]} 1/2-1/2

[Event "*** Titled Tuesday Blitz"]
[Site "Chess.com"]
[Date "2020.11.10"]
[Round "5"]
[White "Andrii_Prydun"]
[Black "xberli"]
[Result "0-1"]
[WhiteElo "2356"]
[BlackElo "2537"]
[TimeControl "180+1"]
[EndTime "10:59:56 PST"]
[Termination "xberli won by resignation"]

1. d4 {[%clk 0:03:00.9]} 1... Nf6 {[%clk 0:02:59.4]} 2. Nc3 {[%clk 0:03:01.5]}
2... g6 {[%clk 0:02:59.2]} 3. Bf4 {[%clk 0:03:01.2]} 3... Bg7 {[%clk 0:02:58.8]}
4. Qd2 {[%clk 0:03:01.9]} 4... d5 {[%clk 0:02:54.1]} 5. Bh6 {[%clk 0:03:02.1]}
5... Bxh6 {[%clk 0:02:53.3]} 6. Qxh6 {[%clk 0:03:03]} 6... c5 {[%clk 0:02:53.7]}
7. Nf3 {[%clk 0:03:02.6]} 7... Nc6 {[%clk 0:02:53.5]} 8. e3 {[%clk 0:03:01.7]}
8... Qa5 {[%clk 0:02:49.2]} 9. dxc5 {[%clk 0:03:00.6]} 9... Qxc5 {[%clk
0:02:30.6]} 10. Bb5 {[%clk 0:02:59.9]} 10... Bd7 {[%clk 0:02:23.4]} 11. O-O
{[%clk 0:02:58.2]} 11... a6 {[%clk 0:02:18.5]} 12. Bxc6 {[%clk 0:02:55.4]} 12...
bxc6 {[%clk 0:02:15.9]} 13. Ne5 {[%clk 0:02:54.9]} 13... Be6 {[%clk 0:02:03.9]}
14. Rad1 {[%clk 0:02:33.6]} 14... Qd6 {[%clk 0:01:50.6]} 15. f4 {[%clk
0:02:18.6]} 15... Ng4 {[%clk 0:01:23.7]} 16. Nxg4 {[%clk 0:02:16.7]} 16... Bxg4
{[%clk 0:01:24.6]} 17. Qg7 {[%clk 0:02:16.8]} 17... Qf6 {[%clk 0:01:01.6]} 18.
Qxf6 {[%clk 0:02:16.9]} 18... exf6 {[%clk 0:01:02.5]} 19. Rd4 {[%clk 0:02:14.9]}
19... Be6 {[%clk 0:00:57.6]} 20. Na4 {[%clk 0:02:02.7]} 20... f5 {[%clk
0:00:53.1]} 21. Nc5 {[%clk 0:02:00.8]} 21... Ke7 {[%clk 0:00:52.7]} 22. b3
{[%clk 0:01:07.5]} 22... Rhb8 {[%clk 0:00:51.9]} 23. Ra4 {[%clk 0:00:52.6]}
23... a5 {[%clk 0:00:42.4]} 24. Nd3 {[%clk 0:00:49.5]} 24... Bd7 {[%clk
0:00:35.9]} 25. Rd4 {[%clk 0:00:46.5]} 25... Be8 {[%clk 0:00:29]} 26. a4 {[%clk
0:00:46.2]} 26... f6 {[%clk 0:00:27]} 27. Rd1 {[%clk 0:00:45.2]} 27... Bd7
{[%clk 0:00:26.6]} 28. Nc5 {[%clk 0:00:44.1]} 28... Be8 {[%clk 0:00:26.7]} 29.
Kf2 {[%clk 0:00:43.3]} 29... Rb6 {[%clk 0:00:25.9]} 30. h4 {[%clk 0:00:43.1]}
30... Rab8 {[%clk 0:00:25.6]} 31. h5 {[%clk 0:00:42.2]} 31... gxh5 {[%clk
0:00:22.4]} 32. Rh1 {[%clk 0:00:38.6]} 32... Bf7 {[%clk 0:00:22.2]} 33. Rh3
{[%clk 0:00:31.6]} 33... Rg8 {[%clk 0:00:18.4]} 34. Rd3 {[%clk 0:00:25]} 34...
Kd6 {[%clk 0:00:17.4]} 35. Rc3 {[%clk 0:00:25.1]} 35... Rg7 {[%clk 0:00:16.4]}
36. Nd3 {[%clk 0:00:24.8]} 36... Rb8 {[%clk 0:00:16.7]} 37. Rc5 {[%clk 0:00:25]}
37... Rbg8 {[%clk 0:00:16.5]} 38. Rh2 {[%clk 0:00:23.7]} 38... Ra8 {[%clk
0:00:17]} 39. Rh3 {[%clk 0:00:18.7]} 39... Rgg8 {[%clk 0:00:16.7]} 40. Rg3
{[%clk 0:00:18]} 40... Rxg3 {[%clk 0:00:14.6]} 41. Kxg3 {[%clk 0:00:18.9]} 41...
Be6 {[%clk 0:00:14.6]} 42. Kh4 {[%clk 0:00:18.8]} 42... Bf7 {[%clk 0:00:15.2]}
43. g3 {[%clk 0:00:18.9]} 43... Kc7 {[%clk 0:00:15.1]} 44. Rc3 {[%clk
0:00:10.5]} 44... Kb6 {[%clk 0:00:15.2]} 45. Ne1 {[%clk 0:00:10]} 45... Rg8
{[%clk 0:00:15]} 46. Nf3 {[%clk 0:00:10.2]} 46... Rg4+ {[%clk 0:00:15.1]} 47.
Kh3 {[%clk 0:00:10.5]} 47... c5 {[%clk 0:00:15.6]} 48. Nh4 {[%clk 0:00:10.2]}
48... Be6 {[%clk 0:00:16]} 49. Rd3 {[%clk 0:00:10.4]} 49... Kc6 {[%clk
0:00:16.3]} 50. Rc3 {[%clk 0:00:10.6]} 50... Rg8 {[%clk 0:00:15.7]} 51. Rd3
{[%clk 0:00:10.1]} 51... Rd8 {[%clk 0:00:14.7]} 52. Nf3 {[%clk 0:00:08.7]} 52...
Rd7 {[%clk 0:00:13.9]} 53. Kh4 {[%clk 0:00:08.2]} 53... Bf7 {[%clk 0:00:12.7]}
54. Nd2 {[%clk 0:00:06.5]} 54... d4 {[%clk 0:00:11.5]} 55. exd4 {[%clk
0:00:05.5]} 55... Rxd4 {[%clk 0:00:12]} 56. Rxd4 {[%clk 0:00:05.3]} 56... cxd4
{[%clk 0:00:12.9]} 57. Nf3 {[%clk 0:00:05.6]} 57... Kc5 {[%clk 0:00:13.1]} 58.
Kh3 {[%clk 0:00:04.4]} 58... d3 {[%clk 0:00:13.3]} 59. cxd3 {[%clk 0:00:04.1]}
59... Bxb3 {[%clk 0:00:13.9]} 60. Nh4 {[%clk 0:00:03.7]} 60... Bxa4 {[%clk
0:00:14.1]} 61. Nf3 {[%clk 0:00:03.3]} 61... Bc2 {[%clk 0:00:14.6]} 62. d4+
{[%clk 0:00:03.2]} 62... Kd5 {[%clk 0:00:14.8]} 63. Kh4 {[%clk 0:00:03.6]} 63...
a4 {[%clk 0:00:14.9]} 64. Ne1 {[%clk 0:00:02.5]} 64... Be4 {[%clk 0:00:14.4]}
65. Kxh5 {[%clk 0:00:02.6]} 0-1

[Event "*** Titled Tuesday Blitz"]
[Site "Chess.com"]
[Date "2020.11.10"]
[Round "5"]
[White "ShcufNaiRolf"]
[Black "Dr_Thomas_Quilter"]
[Result "1-0"]
[WhiteElo "2336"]
[BlackElo "2091"]
[TimeControl "180+1"]
[EndTime "11:00:00 PST"]
[Termination "ShcufNaiRolf won on time"]

1. e4 {[%clk 0:03:00.9]} 1... e5 {[%clk 0:02:58.2]} 2. Nf3 {[%clk 0:02:57.2]}
2... Nc6 {[%clk 0:02:58.4]} 3. Bb5 {[%clk 0:02:56.8]} 3... a6 {[%clk 0:02:58.3]}
4. Ba4 {[%clk 0:02:57]} 4... d6 {[%clk 0:02:58.7]} 5. O-O {[%clk 0:02:55]} 5...
Bd7 {[%clk 0:02:59.3]} 6. c3 {[%clk 0:02:51]} 6... g6 {[%clk 0:02:59]} 7. d4
{[%clk 0:02:49.4]} 7... Bg7 {[%clk 0:02:59.7]} 8. d5 {[%clk 0:02:48]} 8... Nce7
{[%clk 0:02:58.4]} 9. c4 {[%clk 0:02:46.4]} 9... Nf6 {[%clk 0:02:54.9]} 10. Nc3
{[%clk 0:02:45]} 10... O-O {[%clk 0:02:54]} 11. Bxd7 {[%clk 0:02:44]} 11... Qxd7
{[%clk 0:02:49]} 12. Ne1 {[%clk 0:02:31.8]} 12... Nh5 {[%clk 0:02:47.7]} 13. Nd3
{[%clk 0:02:27.3]} 13... f5 {[%clk 0:02:45.1]} 14. Bd2 {[%clk 0:02:18.2]} 14...
b6 {[%clk 0:02:21.5]} 15. b4 {[%clk 0:02:07.3]} 15... Nf4 {[%clk 0:02:05.5]} 16.
Qc2 {[%clk 0:01:44]} 16... fxe4 {[%clk 0:01:57.4]} 17. Nxe4 {[%clk 0:01:43.3]}
17... Nf5 {[%clk 0:01:57.7]} 18. Nxf4 {[%clk 0:01:36.6]} 18... Nd4 {[%clk
0:01:54.5]} 19. Qb2 {[%clk 0:01:34.9]} 19... exf4 {[%clk 0:01:54]} 20. Bc3
{[%clk 0:01:34.5]} 20... Nf5 {[%clk 0:01:40.2]} 21. Bxg7 {[%clk 0:01:31.7]}
21... Qxg7 {[%clk 0:01:03.9]} 22. Qxg7+ {[%clk 0:01:29.4]} 22... Kxg7 {[%clk
0:00:54.8]} 23. Ng5 {[%clk 0:01:21.8]} 23... Nd4 {[%clk 0:00:54.8]} 24. Rfd1
{[%clk 0:01:17.7]} 24... h6 {[%clk 0:00:49.5]} 25. Nh3 {[%clk 0:00:48.7]} 25...
Ne2+ {[%clk 0:00:24.3]} 26. Kf1 {[%clk 0:00:48.8]} 26... f3 {[%clk 0:00:22.3]}
27. Rd3 {[%clk 0:00:20.5]} 27... fxg2+ {[%clk 0:00:17.6]} 28. Kxe2 {[%clk
0:00:20.6]} 28... Rae8+ {[%clk 0:00:17]} 29. Re3 {[%clk 0:00:21.2]} 29... g5
{[%clk 0:00:10.3]} 30. Rg1 {[%clk 0:00:20.9]} 30... Rxe3+ {[%clk 0:00:04.6]} 31.
fxe3 {[%clk 0:00:21.8]} 31... Kg6 {[%clk 0:00:04.6]} 32. Rxg2 {[%clk 0:00:22.2]}
32... Kh5 {[%clk 0:00:04.7]} 33. Nf2 {[%clk 0:00:21.7]} 33... Kh4 {[%clk
0:00:04.9]} 34. Rg4+ {[%clk 0:00:21.4]} 34... Kh5 {[%clk 0:00:04.4]} 35. Re4
{[%clk 0:00:21.1]} 35... Rf7 {[%clk 0:00:03.4]} 36. a4 {[%clk 0:00:20.6]} 36...
Kg6 {[%clk 0:00:03.7]} 37. Nd3 {[%clk 0:00:20.4]} 37... h5 {[%clk 0:00:04.1]}
38. h3 {[%clk 0:00:20.2]} 38... Kf5 {[%clk 0:00:02.4]} 39. Re6 {[%clk
0:00:20.1]} 39... g4 {[%clk 0:00:02]} 40. hxg4+ {[%clk 0:00:21]} 40... hxg4
{[%clk 0:00:02.9]} 41. e4+ {[%clk 0:00:21.2]} 41... Kg5 {[%clk 0:00:03.3]} 42.
e5 {[%clk 0:00:19.2]} 42... Kh4 {[%clk 0:00:01.6]} 43. exd6 {[%clk 0:00:18.8]}
43... cxd6 {[%clk 0:00:02]} 44. Rxd6 {[%clk 0:00:19]} 44... g3 {[%clk
0:00:02.5]} 45. Rg6 {[%clk 0:00:18.3]} 45... Kh3 {[%clk 0:00:02.2]} 46. Ne1
{[%clk 0:00:17.3]} 46... Re7+ {[%clk 0:00:01.6]} 47. Kd2 {[%clk 0:00:17.3]}
47... Re4 {[%clk 0:00:01.1]} 48. d6 {[%clk 0:00:12.6]} 48... Rxc4 {[%clk
0:00:01.3]} 49. Kd3 {[%clk 0:00:09.5]} 49... Rc1 {[%clk 0:00:01.7]} 50. Nf3
{[%clk 0:00:08.9]} 50... Rd1+ {[%clk 0:00:02]} 51. Nd2 {[%clk 0:00:09.1]} 51...
Kg2 {[%clk 0:00:01.3]} 52. d7 {[%clk 0:00:09.2]} 52... Kh1 {[%clk 0:00:01.6]}
53. d8=Q {[%clk 0:00:09.4]} 53... g2 {[%clk 0:00:01.4]} 54. Qh8+ {[%clk
0:00:09.9]} 54... Kg1 {[%clk 0:00:01.6]} 55. Qg8 {[%clk 0:00:10.8]} 55... Kh1
{[%clk 0:00:01.7]} 56. Rxg2 {[%clk 0:00:10.9]} 56... Rxd2+ {[%clk 0:00:02.2]}
57. Kxd2 {[%clk 0:00:10.6]} 57... b5 {[%clk 0:00:01.2]} 58. Qg3 {[%clk
0:00:11.5]} 1-0

[Event "*** Titled Tuesday Blitz"]
[Site "Chess.com"]
[Date "2020.11.10"]
[Round "5"]
[White "H3nriqueTV"]
[Black "TokChess"]
[Result "0-1"]
[WhiteElo "2270"]
[BlackElo "2445"]
[TimeControl "180+1"]
[EndTime "11:00:03 PST"]
[Termination "TokChess won by resignation"]

1. e4 {[%clk 0:02:47.1]} 1... c5 {[%clk 0:02:59.8]} 2. Nf3 {[%clk 0:02:45.7]}
2... e6 {[%clk 0:03:00.2]} 3. b3 {[%clk 0:02:39.3]} 3... Nf6 {[%clk 0:02:59.5]}
4. e5 {[%clk 0:02:35.3]} 4... Nd5 {[%clk 0:02:59.7]} 5. Bb2 {[%clk 0:02:36.2]}
5... Nc6 {[%clk 0:03:00.1]} 6. c4 {[%clk 0:02:35.1]} 6... Nf4 {[%clk 0:02:51.8]}
7. g3 {[%clk 0:02:26.8]} 7... Ng6 {[%clk 0:02:51.6]} 8. Bg2 {[%clk 0:02:27]}
8... Qc7 {[%clk 0:02:51.9]} 9. Qe2 {[%clk 0:02:26]} 9... d6 {[%clk 0:02:37.9]}
10. exd6 {[%clk 0:02:24.5]} 10... Qxd6 {[%clk 0:02:37.7]} 11. O-O {[%clk
0:02:19.9]} 11... e5 {[%clk 0:02:11.3]} 12. Re1 {[%clk 0:02:14.9]} 12... f6
{[%clk 0:02:10.8]} 13. Nc3 {[%clk 0:01:40.5]} 13... Be7 {[%clk 0:02:09.4]} 14.
Nd5 {[%clk 0:01:29.5]} 14... O-O {[%clk 0:02:07.1]} 15. h4 {[%clk 0:01:24.1]}
15... Bg4 {[%clk 0:01:50.5]} 16. Ne3 {[%clk 0:01:20.2]} 16... Bh5 {[%clk
0:01:10.4]} 17. Nf5 {[%clk 0:01:03.2]} 17... Qc7 {[%clk 0:01:05.5]} 18. Qe4
{[%clk 0:00:56.3]} 18... Nh8 {[%clk 0:00:59.5]} 19. d4 {[%clk 0:00:35.4]} 19...
cxd4 {[%clk 0:00:55.7]} 20. Bxd4 {[%clk 0:00:28.9]} 20... Rad8 {[%clk
0:00:46.3]} 21. Bc3 {[%clk 0:00:27.9]} 21... Nf7 {[%clk 0:00:44.2]} 22. b4
{[%clk 0:00:18.8]} 22... Bg6 {[%clk 0:00:41.6]} 23. b5 {[%clk 0:00:18.1]} 23...
Nd6 {[%clk 0:00:41.3]} 24. Nxe7+ {[%clk 0:00:16.1]} 24... Nxe7 {[%clk
0:00:40.1]} 25. Qe2 {[%clk 0:00:16.7]} 25... Qxc4 {[%clk 0:00:37.5]} 26. Qb2
{[%clk 0:00:17.2]} 26... Qxb5 {[%clk 0:00:34.6]} 27. Qa3 {[%clk 0:00:15.9]}
27... Nc6 {[%clk 0:00:30]} 28. Rad1 {[%clk 0:00:14.5]} 28... Nc4 {[%clk
0:00:28.4]} 29. Qc1 {[%clk 0:00:14.7]} 29... Bf7 {[%clk 0:00:27.6]} 30. Bf1
{[%clk 0:00:10.7]} 30... Qa6 {[%clk 0:00:23.3]} 31. Ba1 {[%clk 0:00:09.6]} 31...
b5 {[%clk 0:00:23]} 32. Nd2 {[%clk 0:00:09]} 32... Qxa2 {[%clk 0:00:18.1]} 33.
Nxc4 {[%clk 0:00:08.9]} 33... Bxc4 {[%clk 0:00:18.7]} 34. Rxd8 {[%clk
0:00:08.3]} 34... Rxd8 {[%clk 0:00:18.4]} 35. Bg2 {[%clk 0:00:09.2]} 35... Nd4
{[%clk 0:00:16]} 36. Bxd4 {[%clk 0:00:08.6]} 36... Rxd4 {[%clk 0:00:16.2]} 37.
Rd1 {[%clk 0:00:08.4]} 37... Qa6 {[%clk 0:00:12.1]} 38. Rxd4 {[%clk 0:00:08.2]}
38... exd4 {[%clk 0:00:12.6]} 39. Qf4 {[%clk 0:00:08.8]} 39... Qe6 {[%clk
0:00:09.6]} 40. Qxd4 {[%clk 0:00:07.3]} 40... a6 {[%clk 0:00:07.8]} 41. Qd8+
{[%clk 0:00:07.2]} 41... Kf7 {[%clk 0:00:07.3]} 42. Qc7+ {[%clk 0:00:07.7]}
42... Qe7 {[%clk 0:00:06.6]} 43. Qc6 {[%clk 0:00:08.2]} 43... Kg8 {[%clk
0:00:05.1]} 44. Qxa6 {[%clk 0:00:07.6]} 44... h6 {[%clk 0:00:03.5]} 45. Qb6
{[%clk 0:00:06.9]} 45... Kh7 {[%clk 0:00:03.1]} 46. Qd4 {[%clk 0:00:06.5]} 46...
f5 {[%clk 0:00:02.9]} 47. Bf3 {[%clk 0:00:06.4]} 47... Qe6 {[%clk 0:00:03.3]}
48. Qe3 {[%clk 0:00:06.5]} 48... Qxe3 {[%clk 0:00:03.2]} 49. fxe3 {[%clk
0:00:07.4]} 49... Kg6 {[%clk 0:00:03.7]} 50. Kf2 {[%clk 0:00:08.1]} 50... Kf6
{[%clk 0:00:04.3]} 51. Bc6 {[%clk 0:00:08.1]} 51... g5 {[%clk 0:00:04]} 52. h5
{[%clk 0:00:07.5]} 52... Ke5 {[%clk 0:00:03.4]} 53. Bd7 {[%clk 0:00:07.2]} 53...
b4 {[%clk 0:00:03.5]} 54. Ba4 {[%clk 0:00:04.7]} 54... Bf7 {[%clk 0:00:03.4]}
55. Bc2 {[%clk 0:00:04.2]} 55... Bxh5 {[%clk 0:00:02.6]} 56. Bb3 {[%clk
0:00:05]} 56... Bg6 {[%clk 0:00:02.5]} 57. Kf3 {[%clk 0:00:05.5]} 57... Be8
{[%clk 0:00:02.8]} 58. g4 {[%clk 0:00:05.5]} 58... Bc6+ {[%clk 0:00:03.1]} 59.
Kg3 {[%clk 0:00:05.7]} 59... fxg4 {[%clk 0:00:03.7]} 60. Kxg4 {[%clk 0:00:06.1]}
60... Ke4 {[%clk 0:00:04]} 61. Kh5 {[%clk 0:00:05.6]} 61... Kxe3 {[%clk
0:00:04.1]} 62. Kxh6 {[%clk 0:00:06.5]} 62... g4 {[%clk 0:00:04.5]} 0-1

[Event "*** Titled Tuesday Blitz"]
[Site "Chess.com"]
[Date "2020.11.10"]
[Round "5"]
[White "Make_it_shine060"]
[Black "davigator"]
[Result "0-1"]
[WhiteElo "2177"]
[BlackElo "2374"]
[TimeControl "180+1"]
[EndTime "11:00:04 PST"]
[Termination "davigator won by resignation"]

1. d4 {[%clk 0:03:00.9]} 1... Nf6 {[%clk 0:02:57.4]} 2. c4 {[%clk 0:02:58.7]}
2... e6 {[%clk 0:02:57]} 3. Nf3 {[%clk 0:02:56.9]} 3... Bb4+ {[%clk 0:02:57.1]}
4. Bd2 {[%clk 0:02:52.4]} 4... a5 {[%clk 0:02:56.5]} 5. g3 {[%clk 0:02:50.8]}
5... b6 {[%clk 0:02:56.2]} 6. Bg2 {[%clk 0:02:49.7]} 6... Ba6 {[%clk 0:02:56.4]}
7. Qc2 {[%clk 0:02:42.4]} 7... c6 {[%clk 0:02:55.5]} 8. O-O {[%clk 0:02:41.5]}
8... O-O {[%clk 0:02:55.3]} 9. Bg5 {[%clk 0:02:38.1]} 9... Be7 {[%clk
0:02:54.9]} 10. Nbd2 {[%clk 0:02:34.7]} 10... d5 {[%clk 0:02:54.8]} 11. Rfe1
{[%clk 0:02:23.8]} 11... Nbd7 {[%clk 0:02:52.6]} 12. Rad1 {[%clk 0:02:15.5]}
12... h6 {[%clk 0:02:52.2]} 13. Bxf6 {[%clk 0:02:08.8]} 13... Nxf6 {[%clk
0:02:52.2]} 14. e4 {[%clk 0:02:07.8]} 14... Rc8 {[%clk 0:02:51.6]} 15. e5 {[%clk
0:02:00.7]} 15... Nd7 {[%clk 0:02:49.2]} 16. b3 {[%clk 0:01:44.1]} 16... Bb4
{[%clk 0:02:46.2]} 17. Re3 {[%clk 0:01:40.5]} 17... Re8 {[%clk 0:02:45.4]} 18.
Ne1 {[%clk 0:01:38.1]} 18... f6 {[%clk 0:02:28.1]} 19. exf6 {[%clk 0:01:35.3]}
19... Nxf6 {[%clk 0:02:24.3]} 20. Nd3 {[%clk 0:01:30.8]} 20... Bxd2 {[%clk
0:01:44.1]} 21. Rxd2 {[%clk 0:01:19.7]} 21... dxc4 {[%clk 0:01:35.9]} 22. bxc4
{[%clk 0:01:08.4]} 22... Qxd4 {[%clk 0:01:35.7]} 23. Ne5 {[%clk 0:01:05.4]}
23... Qc5 {[%clk 0:01:35.2]} 24. Qg6 {[%clk 0:00:57.8]} 24... Re7 {[%clk
0:01:30.7]} 25. Bh3 {[%clk 0:00:50.8]} 25... Bxc4 {[%clk 0:01:23.2]} 26. Nxc4
{[%clk 0:00:34.1]} 26... Qxc4 {[%clk 0:01:21.8]} 27. Rd1 {[%clk 0:00:32.5]}
27... Rf8 {[%clk 0:01:18.5]} 28. Rde1 {[%clk 0:00:27.5]} 28... Rfe8 {[%clk
0:00:51.1]} 29. Qb1 {[%clk 0:00:24.1]} 29... b5 {[%clk 0:00:46.8]} 30. Qd1
{[%clk 0:00:22.7]} 30... Qd5 {[%clk 0:00:38.3]} 31. Qc2 {[%clk 0:00:20.6]} 31...
Kf7 {[%clk 0:00:33.1]} 32. Bg2 {[%clk 0:00:19.7]} 32... Qc4 {[%clk 0:00:31.6]}
33. Qxc4 {[%clk 0:00:19.3]} 33... bxc4 {[%clk 0:00:31.9]} 34. Bxc6 {[%clk
0:00:19.9]} 34... Rc8 {[%clk 0:00:32.5]} 35. Bb5 {[%clk 0:00:19.7]} 35... Rc5
{[%clk 0:00:32.3]} 36. Ba4 {[%clk 0:00:18.8]} 36... Nd5 {[%clk 0:00:30.8]} 37.
Rf3+ {[%clk 0:00:17.2]} 37... Nf6 {[%clk 0:00:25.6]} 38. Rc3 {[%clk 0:00:15.5]}
38... Rec7 {[%clk 0:00:25]} 39. Rce3 {[%clk 0:00:13.9]} 39... Re7 {[%clk
0:00:21.6]} 40. Kf1 {[%clk 0:00:11.9]} 40... g5 {[%clk 0:00:21.6]} 41. Rc1
{[%clk 0:00:11.3]} 41... g4 {[%clk 0:00:20.5]} 42. Bd1 {[%clk 0:00:09.3]} 42...
h5 {[%clk 0:00:19.4]} 43. h3 {[%clk 0:00:09.2]} 43... Rec7 {[%clk 0:00:17.9]}
44. hxg4 {[%clk 0:00:08.4]} 44... hxg4 {[%clk 0:00:17.6]} 45. Kg2 {[%clk
0:00:06.5]} 45... c3 {[%clk 0:00:17.5]} 46. Bb3 {[%clk 0:00:05.3]} 46... R7c6
{[%clk 0:00:16.4]} 47. Rce1 {[%clk 0:00:04.5]} 47... Nd5 {[%clk 0:00:15.3]} 48.
Bxd5 {[%clk 0:00:03.9]} 48... Rxd5 {[%clk 0:00:14.7]} 49. Rc1 {[%clk 0:00:03.7]}
49... c2 {[%clk 0:00:14.5]} 50. Re4 {[%clk 0:00:04.1]} 50... Rd1 {[%clk
0:00:13.8]} 51. Rf4+ {[%clk 0:00:03]} 51... Ke7 {[%clk 0:00:13.8]} 52. Rxc2
{[%clk 0:00:02.6]} 52... Rxc2 {[%clk 0:00:13.3]} 53. Rxg4 {[%clk 0:00:03.1]}
53... Rdd2 {[%clk 0:00:13.3]} 54. Rf4 {[%clk 0:00:03.3]} 54... Rxa2 {[%clk
0:00:13.7]} 55. g4 {[%clk 0:00:02.5]} 55... e5 {[%clk 0:00:14.3]} 56. g5 {[%clk
0:00:03]} 56... Ke6 {[%clk 0:00:14.9]} 57. Rf3 {[%clk 0:00:02.2]} 57... e4
{[%clk 0:00:14.5]} 58. Rf6+ {[%clk 0:00:02.2]} 58... Ke5 {[%clk 0:00:14.4]} 59.
Rf7 {[%clk 0:00:02.3]} 59... e3 {[%clk 0:00:14.4]} 60. g6 {[%clk 0:00:01.9]}
60... Rxf2+ {[%clk 0:00:13.5]} 61. Rxf2 {[%clk 0:00:01.6]} 61... Rxf2+ {[%clk
0:00:13.7]} 62. Kg1 {[%clk 0:00:02]} 62... Rf8 {[%clk 0:00:14.4]} 63. g7 {[%clk
0:00:02.2]} 63... Rg8 {[%clk 0:00:14.9]} 0-1